[Event "Tsaghkadzor Open 2024"]
[Site "Tsaghkadzor"]
[Date "2024.10.03"]
[Round "5.6"]
[White "Sahakyan, Aleks"]
[Black "Lobanov, Sergei"]
[Result "1/2-1/2"]
[ECO "B30"]
[WhiteElo "2267"]
[BlackElo "2506"]
[Annotator "TA"]
[PlyCount "155"]
[EventDate "2024.09.13"]
[EventType "swiss"]
[EventCountry "ARM"]
[SourceTitle "playchess.com"]
[Source "ChessBase"]
[SourceQuality "1"]
[TimeControl "40/5400+30:1800+30"]

{[%evp 9,155,0,10,7,37,0,0,0,0,0,0,-65,-49,-62,-59,-52,-48,-86,-70,-63,-67,-57,-69,-82,-87,-83,-62,-71,0,0,0,0,0,-29,-14,-31,-18,-57,-46,-53,-33,-35,0,-89,-79,-135,-110,-161,-166,-145,-75,-88,0,0,15,0,0,-95,-111,-95,262,164,442,442,641,629,647,616,634,619,1043,976,5057,5057,5057,5057,4132,4627,4132,750,743,743,618,145,145,145,202,144,473,473,393,8,148,148,148,148,148,148,148,148,148,148,148,148,148,148,148,148,148,148,148,148,148,148,148,148,148,148,148,148,148,148,148,148,148,121,121,121,121,121,121,121,121,121,121,121,121,121,121,0,121,8,8,8,8,8,12,0]} 1. e4 {[%emt 0:00:03]} c5 {[%emt 0:00:07]} 2. Nf3 {[%emt 0:00:04]} Nc6 {[%emt 0:00:07]} 3. Bb5 {[%emt 0:00:06]} e6 {[%emt 0:00:13]} 4. Bxc6 {[%emt 0:00:05]} bxc6 {[%emt 0:00:05]} 5. d3 {[%emt 0:00:04]} Ne7 {[%emt 0:01:59][%cal Bg8e7,Be7g6,Bg6f4][%mdl 32]} 6. Nbd2 {[%emt 0:03:42]} f6 {[%emt 0:03:02]} 7. O-O {[%emt 0:05:31]} Ng6 {[%emt 0:01:28]} 8. h4 {[%emt 0:09:05]} e5 {[%emt 0:01:28]} 9. h5 {[%emt 0:08:27]} Nf4 {[%emt 0:00:07][%cal Og7g6]} 10. Nh4 {[%emt 0:01:26]} (10. Nc4 $11) 10... g6 $15 {[%emt 0:06:44]} 11. hxg6 {[%emt 0:09:03]} hxg6 {[%emt 0:00:14]} 12. Ndf3 {[%emt 0:00:03]} g5 {[%emt 0:06:37]} 13. Bxf4 {[%emt 0:01:59]} exf4 {[%emt 0:14:19]} 14. Nf5 {[%emt 0:02:58]} d5 {[%emt 0:03:15] aiming for ...Qc7.} 15. g4 {[%emt 0:02:27]} fxg3 $1 {[%emt 0:07:55]} 16. fxg3 {[%emt 0:03:06]} Bxf5 {[%emt 0:01:47]} 17. exf5 {[%emt 0:00:07]} Bd6 {[%emt 0:00:02]} 18. Kg2 {[%emt 0:02:23]} Kf7 {[%emt 0:01:00]} ({Better is} 18... Kd7 $17 {...Qb8 would now be deadly.} 19. Qe2 Re8) 19. Qe2 $11 {[%emt 0:09:37]} Qd7 {[%emt 0:16:37][%cal Oa8e8]} 20. Rae1 {[%emt 0:00:45]} Rae8 {[%emt 0:07:42] Wards off Qe6+} (20... Qxf5 $6 21. Qe6+ (21. Nxg5+ $2 Qxg5 $19) 21... Qxe6 22. Nxg5+ Kg6 23. Rxe6 $16) 21. Qe6+ {[%emt 0:01:44]} Qxe6 {[%emt 0:00:30]} (21... Rxe6 $2 22. fxe6+ Ke7 23. exd7+ $18) 22. fxe6+ {[%emt 0:00:08]} Kg6 {[%emt 0:05:57]} 23. c3 {[%emt 0:09:07]} Re7 {[%emt 0:00:32]} 24. Re2 {[%emt 0:01:10]} Reh7 {[%emt 0:12:25]} 25. Rfe1 {[%emt 0:01:23]} Be7 {[%emt 0:00:04]} (25... Rh3 26. Nh4+ gxh4 (26... R8xh4 $2 27. gxh4 Rh2+ 28. Kg1 $18) 27. Kxh3 hxg3+ 28. Kg2 $16) 26. b3 {[%emt 0:04:07]} (26. g4 $11) 26... Kf5 $1 $17 {[%emt 0:02:07]} 27. d4 {[%emt 0:05:21]} (27. Re3 $142) 27... Kg4 {[%emt 0:00:27]} 28. Kf2 {[%emt 0:00:13]} (28. dxc5 $17 Rh3 29. Nd4 Rxg3+ (29... Bxc5 30. Re4+ dxe4 31. Rxe4+ Kh5 32. Kxh3 $16) 30. Kf2) 28... Bd6 $19 {[%emt 0:01:39]} 29. Rg1 {[%emt 0:01:10]} Re7 {[%emt 0:00:22]} (29... cxd4 $142 30. Nxd4 c5) 30. Kg2 $17 {[%emt 0:06:54] [#]} Bxg3 {[%emt 0:03:35]} (30... cxd4 $1 $17 31. Nxd4 Reh7 (31... Bxg3 $2 32. Kf1 $18)) 31. dxc5 $11 {[%emt 0:00:41]} f5 {[%emt 0:00:29]} (31... Ree8 {simplifies} 32. Nd4 Be5 33. Nxc6 Rxe6 34. Nxe5+ Rxe5 35. Rxe5 fxe5 36. b4 Kf4) 32. Rd1 {[%emt 0:02:08] Black must now prevent Rd4+.} (32. Nxg5 $2 Rh2+ 33. Kf1 Rxe2 34. Kxe2 f4 $19) 32... Rh6 {[%emt 0:02:21]} 33. Rd4+ {[%emt 0:01:35]} (33. Rd3 $1 $11) 33... f4 $17 {[%emt 0:00:11]} 34. Re5 {[%emt 0:01:57][%csl Gf3][%cal Re5g5]} (34. Ne5+ $2 Kh5 35. Nf3 (35. Nxc6 $2 Rhxe6 36. Rxe6 Rxe6 $19) 35... Rhxe6 (35... Rexe6 $2 36. Rdd2 $19) 36. Rxe6 Rxe6 $19) 34... Rg6 {[%emt 0:00:04][%mdl 8192]} (34... Rexe6 35. Rxg5#) (34... Bh4 $17 {keeps the pressure on.} 35. Nh2+ Kh5 36. Rxf4 Rhxe6 37. Rxe6 Rxe6 (37... gxf4 38. Rxe7 Bxe7 39. Nf3 $11)) 35. c4 {[%emt 0:01:09]} dxc4 {[%emt 0:00:07]} (35... Rexe6 36. cxd5 cxd5) 36. bxc4 $18 {[%emt 0:00:27][%cal Bb3c4,Bc4c5][%mdl 32]} Rexe6 {[%emt 0:02:16] [#]} (36... Rgxe6 37. Rxg5#) (36... Rgg7 $142 37. Rd7 Bh4) 37. Rd6 $1 {[%emt 0:00:12][%mdl 512]} Rxd6 {[%emt 0:00:06]} 38. cxd6 {[%emt 0:00:05][%mdl 4096] Endgame. KRB-KRN} Bh4 {[%emt 0:00:02]} 39. c5 {[%emt 0:00:42] Intending d7 and mate.} Rg8 {[%emt 0:00:04]} 40. d7 {[%emt 0:00:00] Re8 would kill now.} Rd8 {[%emt 0:00:00]} 41. Re8 {[%emt 0:16:04]} Rxd7 {[%emt 0:16:41]} 42. Ne5+ {[%emt 0:00:03]} Kf5 {[%emt 0:00:03]} 43. Nxd7 {[%emt 0:00:07]} g4 {[%emt 0:00:05]} 44. Rf8+ {[%emt 0:02:01]} Ke6 {[%emt 0:00:28]} 45. Nb8 {[%emt 0:05:36]} f3+ {[%emt 0:00:06]} 46. Kh2 $2 {[%emt 0:02:12]} (46. Kf1 $18 {is more deadly.}) 46... Bf2 $16 {[%emt 0:04:33]} 47. Rg8 {[%emt 0:03:20]} (47. Nxc6 $6 g3+ 48. Kh3 g2 $11) 47... Bxc5 {[%emt 0:01:29]} (47... Kf5 $16) 48. Nxc6 {[%emt 0:01:46]} Bd6+ $2 {[%emt 0:00:56][%mdl 8192]} (48... Kf5 $16 {is tougher.} 49. Rg7 Bf2 50. Ne7+ (50. Nxa7 Kf4 $11) 50... Kf6 51. Rxg4 Kxe7) 49. Kg1 $18 {[%emt 0:00:19]} Kd5 {[%emt 0:03:29]} 50. Nxa7 $2 {[%emt 0:07:39]} (50. Na5 $18 g3 51. Rd8) 50... Bc5+ {[%emt 0:05:38]} (50... g3 $1 $11) 51. Kf1 $16 {[%emt 0:00:10]} Bxa7 {[%emt 0:00:04]} 52. Rxg4 {[%emt 0:00:03] Threatens to win with Rg7. KR-KB} Kc6 {[%emt 0:00:10]} 53. Rg5 {[%emt 0:00:28]} Kb7 {[%emt 0:00:38]} 54. Rf5 {[%emt 0:00:05]} f2 {[%emt 0:00:03]} 55. Ke2 {[%emt 0:00:05]} Ka6 {[%emt 0:00:22]} 56. Kd3 {[%emt 0:00:19]} Bb6 {[%emt 0:00:06]} 57. Kc4 {[%emt 0:00:11]} Be3 {[%emt 0:00:03]} 58. Kb4 {[%emt 0:01:01]} Bd4 {[%emt 0:01:03]} 59. Rf4 {[%emt 0:00:15]} Kb6 {[%emt 0:01:06]} 60. a4 {[%emt 0:02:03]} (60. Rxd4 $2 f1=Q (60... f1=R 61. Rd2 $11) 61. a4 Qf2 $19) 60... Bc5+ {[%emt 0:00:12]} 61. Kc4 {[%emt 0:00:17] White threatens Rf6+ and mate.} Be3 {[%emt 0:00:02]} 62. Rf5 {[%emt 0:00:10]} Ka6 {[%emt 0:00:18]} 63. Kb3 {[%emt 0:00:25]} Bc5 {[%emt 0:01:14]} 64. Kc3 {[%emt 0:00:37]} (64. Rxc5 $2 {is the wrong capture.} f1=Q (64... f1=R 65. Rc6+ Ka5 66. Rc5+ Ka6 67. Rc6+ Kb7 68. Rg6 $11) 65. Rc6+ Ka5 66. Rc5+ Kb6 $19) 64... Be3 {[%emt 0:01:53]} 65. Kc4 {[%emt 0:00:02]} Ba7 {[%emt 0:01:16]} 66. Kb4 {[%emt 0:00:53]} Bd4 {[%emt 0:00:31]} 67. a5 {[%emt 0:00:37]} Be3 {[%emt 0:00:04]} 68. Rf6+ {[%emt 0:00:06]} Kb7 {[%emt 0:00:05]} 69. Kb5 {[%emt 0:00:04]} Bd4 {[%emt 0:00:14]} 70. Rf7+ {[%emt 0:00:11]} Kb8 {[%emt 0:00:08]} 71. Kc6 {[%emt 0:01:00]} Be3 {[%emt 0:00:17]} 72. a6 {[%emt 0:00:40]} Ka8 {[%emt 0:00:17]} 73. Kb5 {[%emt 0:01:34]} Kb8 {[%emt 0:00:16]} 74. Kc6 {[%emt 0:00:13]} Ka8 {[%emt 0:00:04] [#]} 75. a7 {[%emt 0:00:05]} Bd4 $11 {[%emt 0:01:23] The position is equal.} 76. Kb5 {[%emt 0:00:33]} Bxa7 {[%emt 0:00:04]} 77. Ka6 {[%emt 0:00:11]} Bc5 {[%emt 0:00:46]} 78. Kb5 {[%emt 0:00:05] Quite a comeback for White.   Weighted Error Value: White=0.39/Black=0.42.  Loses game:     	---       	Black=2      Missed win:     	White=1     	---        Mistake:       	White=6     	Black=7      Inaccurate:     	White=4     	Black=2      OK:         	White=21    	Black=23     Best:        	White=3     	Black=6      Strong:       	---       	Black=2      Brilliant:      	White=1     	---} 1/2-1/2

[Event "Tsaghkadzor Open 2024"]
[Site "Tsaghkadzor"]
[Date "2024.10.03"]
[Round "5.7"]
[White "Kornienko, Konstantin"]
[Black "Davtyan, Artur"]
[Result "1/2-1/2"]
[ECO "E11"]
[WhiteElo "2058"]
[BlackElo "2467"]
[Annotator "TA"]
[PlyCount "87"]
[EventDate "2024.09.13"]
[EventType "swiss"]
[EventCountry "ARM"]
[SourceTitle "playchess.com"]
[Source "ChessBase"]
[SourceQuality "1"]
[TimeControl "40/5400+30:1800+30"]

{[%evp 19,87,11,6,7,0,0,64,56,68,53,62,28,32,41,41,35,41,31,33,26,30,35,29,27,51,44,89,60,69,100,85,80,80,87,94,80,106,113,108,107,83,14,8,3,51,74,54,76,64,61,73,69,63,58,62,60,127,35,107,100,164,158,330,331,294,212,209,185,257,173]} 1. d4 {[%emt 0:00:07]} Nf6 {[%emt 0:15:58]} 2. Nf3 {[%emt 0:00:23]} d5 {[%emt 0:00:27]} 3. c4 {[%emt 0:00:10]} e6 {[%emt 0:00:38]} 4. g3 {[%emt 0:00:36]} Bb4+ {[%emt 0:03:04]} 5. Bd2 {[%emt 0:00:20]} Be7 {[%emt 0:00:07]} 6. Bg2 {[%emt 0:01:09]} O-O {[%emt 0:00:07]} 7. Qc2 {[%emt 0:00:14]} c6 {[%emt 0:00:07]} 8. O-O {[%emt 0:00:14]} b6 {[%emt 0:04:37]} 9. Bf4 {[%emt 0:07:14]} Ba6 {[%emt 0:22:16]} 10. Nbd2 {[%emt 0:06:19]} Nbd7 {[%emt 0:00:29]} 11. Rfd1 {[%emt 0:25:00]} Rc8 {[%emt 0:02:28]} 12. Rac1 {[%emt 0:08:54]} b5 {[%emt 0:05:25]} (12... Nh5 $11) 13. c5 $14 {[%emt 0:02:59] White is slightly better.} b4 {[%emt 0:00:05]} 14. Re1 {[%emt 0:04:47]} Bb5 {[%emt 0:00:19] Against Qa4} 15. e4 {[%emt 0:08:20]} dxe4 {[%emt 0:04:46]} 16. Nxe4 {[%emt 0:00:33]} Nxe4 {[%emt 0:00:12]} 17. Qxe4 {[%emt 0:00:20]} Nf6 {[%emt 0:00:19]} 18. Qc2 {[%emt 0:00:50]} Nd5 {[%emt 0:11:45]} 19. Bd2 {[%emt 0:02:15]} a5 {[%emt 0:03:49]} 20. a3 {[%emt 0:03:48]} bxa3 {[%emt 0:01:22]} 21. bxa3 {[%emt 0:00:04]} Qc7 {[%emt 0:02:04]} 22. Ne5 {[%emt 0:03:56]} Rfd8 {[%emt 0:00:09]} 23. Bh3 {[%emt 0:04:19] White is much more active.} g6 {[%emt 0:01:09]} 24. Bh6 {[%emt 0:03:52]} Bf8 {[%emt 0:00:25] [#]} 25. Nxf7 {[%emt 0:09:40]} Qxf7 {[%emt 0:09:33]} 26. Bxe6 {[%emt 0:00:06]} Bxh6 {[%emt 0:00:04]} 27. Bxf7+ {[%emt 0:00:59]} Kxf7 {[%emt 0:00:02]} 28. Rb1 {[%emt 0:00:50]} Bg7 {[%emt 0:00:06] Dodges Re5} 29. a4 {[%emt 0:02:01]} Ba6 {[%emt 0:00:07]} 30. Qd2 {[%emt 0:02:33]} ({White should play} 30. Qa2 $16) 30... Nb4 $11 {[%emt 0:00:22]} 31. Re4 {[%emt 0:01:21]} Bf6 {[%emt 0:01:33]} (31... Bc4 $11 {was preferrable.}) 32. Rbe1 {[%emt 0:01:01][%cal Bb1e1,Be1e4,Be4f4][%mdl 32] Hoping for Qh6.} Kg8 {[%emt 0:00:06]} 33. Re6 {[%emt 0:00:44]} Rf8 {[%emt 0:07:15]} 34. Rd6 {[%emt 0:00:48]} Bc4 {[%emt 0:00:02] Inhibits d5.} 35. h4 {[%emt 0:00:29]} Rf7 {[%emt 0:00:38]} 36. Re4 {[%emt 0:00:38]} Rcf8 {[%emt 0:00:15]} 37. Rf4 $1 {[%emt 0:00:31][%cal Oh4h5]} Bd5 {[%emt 0:00:41]} (37... Kg7 $14) 38. Kh2 {[%emt 0:00:30]} (38. h5 $1 $16) 38... Kg7 {[%emt 0:03:30]} (38... h5 $14) 39. h5 $1 $16 {[%emt 0:00:21]} gxh5 {[%emt 0:00:47] [#]} (39... Kg8 $16 {is a better defense.}) 40. Qe2 $1 $18 {[%emt 0:00:00]} Bxd4 $2 {[%emt 0:00:00] This costs Black the game.} (40... h4 $16 41. gxh4 Kg8) 41. Qxh5 {[%emt 0:17:21]} Rxf4 {[%emt 0:21:12]} 42. gxf4 {[%emt 0:00:32]} Bf6 {[%emt 0:01:44]} 43. Rd7+ {[%emt 0:01:04]} Bf7 {[%emt 0:00:07]} (43... Rf7 $142 44. Rxf7+ Bxf7 45. Qg4+ Kh6 46. Qh3+ Kg6) 44. Qg4+ {[%emt 0:02:51] Weighted Error Value: White=0.14 (very precise) /Black=0.26 (precise) .  Loses game:     	---       	Black=1      Mistake:       	White=2     	Black=6      Inaccurate:     	White=3     	Black=2      OK:         	White=12    	Black=9      Best:        	White=2     	Black=4      Strong:       	White=3     	---} 1/2-1/2